fUSD/lending_fUSD_20250219
["ID","MTS","AMOUNT","RATE_DAILY","PERIOD"]
[353594236,1739951445856,-41139.84996464,0.0001,2]
[353594237,1739951445868,-49765.59153868,0.0001,2]
[353594238,1739951445879,-2665.46583,0.0001,2]
[353594239,1739951448784,2462.12188605,0.000205,120]
[353594244,1739952263125,162.76,8.767e-05,2]
[353594246,1739952279003,8.06,9.053e-05,2]
[353594247,1739952279030,147.81,9.053e-05,2]
[353594265,1739952631947,-535.11851416,9.414e-05,2]
[353594266,1739952632055,-118.78148584,9.414e-05,2]
[353594267,1739952632064,-1840.06076914,9.8e-05,2]
[353594268,1739952632107,-400.0,9.8e-05,2]
[353594269,1739952632119,-542.86723086,9.8e-05,2]
[353594270,1739952632129,-175.842,9.8e-05,2]
[353594271,1739952632138,-19579.41227931,9.91e-05,2]
[353594272,1739952632148,-150.0,9.999e-05,2]
[353594273,1739952632158,-365339.69561666,0.0001,2]
[353594274,1739952632167,-27467.20006681,0.0001,2]
[353594275,1739952632240,-363.36010393,0.0001,2]
[353594276,1739952632252,-254.46,0.0001,2]
[353594303,1739952632583,-12448.16541727,0.0001,2]
[353594304,1739952632594,-1246.99151095,0.0001,2]
[353594305,1739952632606,-6834.64085429,0.0001,2]
[353594306,1739952632618,-2614.97457783,0.0001,2]
[353594307,1739952632629,-3653.74999986,0.0001,2]
[353594308,1739952632639,-3592.79863,0.0001,2]
[353594309,1739952632650,-3590.61534836,0.0001,2]
[353594310,1739952632661,-2293.13147782,0.0001,2]
[353594311,1739952632673,-1151.55012815,0.0001,2]
[353594312,1739952632685,-256.7011023,0.0001,2]
[353594313,1739952637897,-293.7686,0.0001,2]
[353594314,1739952637951,-514.807546,0.0001,2]
[353594315,1739952638004,-1105.0,0.0001,2]
[353594316,1739952638014,-1194.795,0.0001,2]
[353594317,1739952638057,-9028.46925709,0.0001,2]
[353594318,1739952638068,-500.0,0.0001,2]
[353594558,1739952640299,-24724.462684,0.0001,2]
[353594581,1739952640512,-260.32533921,0.0001,2]
[353594583,1739952640524,-337.71040865,0.0001,2]
[353594847,1739952643133,-8161.8,0.0001,2]
[353595122,1739952645905,-780.45643997,0.0001,2]
[353595124,1739952645915,-1117.15179934,0.0001,2]
[353595592,1739952681073,-33379.0,0.0001,2]
[353595597,1739953050749,150.0,0.00020171,120]
[353595602,1739953333906,157.96,9.073e-05,2]
[353595605,1739953416434,157.26,8.767e-05,2]
[353595607,1739953554759,1289.29743538,6.94e-05,2]
[353595609,1739953566044,1034.60178998,8e-05,2]
[353595652,1739953688117,981.03269584,8.9e-05,2]
[353595674,1739953832059,-673.18,9.405e-05,2]
[353595675,1739953832068,-503.97697201,9.973e-05,2]
[353595676,1739953832077,-150.0,9.999e-05,2]
[353595677,1739953832086,-11715.36642026,0.0001,2]
[353595678,1739953832113,-38754.2486426,0.0001,2]
[353595679,1739953832123,-14237.08277627,0.0001,2]
[353595680,1739953832135,-13871.21277013,0.0001,2]
[353595681,1739953832147,-20008.62170294,0.0001,2]
[353595682,1739953832224,-18211.67462433,0.0001,2]
[353595683,1739953832235,-17957.69615002,0.0001,2]
[353595684,1739953832245,-436.4474762,0.0001,2]
[353595685,1739953832255,-4541.84933589,0.0001,2]
[353595686,1739953832267,-45649.03227229,0.0001,2]
[353595687,1739953832279,-685.05424735,0.0001,2]
[353595688,1739953832290,-498.92723845,0.0001,2]
[353595689,1739953832356,-9149.05422819,0.0001,2]
[353595722,1739953838055,-5498.70977705,0.0001,2]
[353595723,1739953838067,-4365.31421469,0.0001,2]
[353595724,1739953838162,-1943.46898318,0.0001,2]
[353595725,1739953838174,-1033.62952362,0.0001,2]
[353595726,1739953838219,-743.15172556,0.0001,2]
[353595727,1739953838333,-6642.96451513,0.0001,2]
[353595728,1739953838344,-7080.69797717,0.0001,2]
[353595949,1739953840649,-33807.49692822,0.0001,2]
[353595950,1739953840678,-19825.6,0.0001,2]
[353595952,1739953840690,-50119.70942129,0.0001,2]
[353595953,1739953840726,-808.9492575,0.0001,2]
[353595954,1739953840737,-737.85943945,0.0001,2]
[353595958,1739953841120,-4115.48653958,0.0001,2]
[353595959,1739953841133,-985.93,0.0001,2]
[353595960,1739953841145,-406.72254695,0.0001,2]
[353595961,1739953841156,-409.41979014,0.0001,2]
[353595962,1739953841192,-500.17251907,0.0001,2]
[353595963,1739953841204,-512.47442503,0.0001,2]
[353596008,1739953843349,-4743.9744104,0.0001,2]
[353596013,1739953843404,-381.52,0.0001,2]
[353596016,1739953843415,-333.26181891,0.0001,2]
[353596018,1739953843426,-24690.83409114,0.0001,2]
[353596022,1739953843459,-12693.4031788,0.0001,2]
[353596024,1739953843470,-445.62002,0.0001,2]
[353596035,1739953843587,-681.83583395,0.0001,2]
[353596038,1739953843598,-2632.86151025,0.0001,2]
[353596107,1739953846091,-383.5086327,0.0001,2]
[353596108,1739953846103,-626.8265502,0.0001,2]
[353596109,1739953846323,-279.02591961,0.0001,2]
[353596110,1739953846335,-2058.58723593,0.0001,2]
[353596111,1739953846389,-484.3126053,0.0001,2]
[353596112,1739953846400,-40613.31226742,0.0001,2]
[353596118,1739954459231,740.59,8.788e-05,2]
[353596121,1739954515291,153.78,8.767e-05,2]
[353596122,1739954817121,159.01,8.487e-05,2]
[353596126,1739954851301,150.0,0.00019668,120]
[353596180,1739955032302,-150.0,9.973e-05,2]
[353596181,1739955032312,-150.0,9.999e-05,2]
[353596182,1739955032322,-150.0,0.0001,2]
[353596183,1739955032332,-448.408,0.0001,2]
[353596184,1739955032342,-7302.49710665,0.0001,2]
[353596185,1739955032370,-427.6411552,0.0001,2]
[353596186,1739955032513,-300.0,0.0001,2]
[353596187,1739955032566,-1832.1416959,0.0001,2]
[353596188,1739955032577,-706.29087696,0.0001,2]
[353596189,1739955032635,-13580.86654249,0.0001,2]
[353596190,1739955032646,-29896.7172,0.0001,2]
[353596191,1739955032677,-2010.06740946,0.0001,2]
[353596192,1739955032726,-912.26201413,0.0001,2]
[353596193,1739955032737,-6515.385521,0.0001,2]
[353596194,1739955032768,-1005.91138018,0.0001,2]
[353596195,1739955032796,-364777.20000001,0.0001,2]
[353596196,1739955032807,-2044.17048353,0.0001,2]
[353596407,1739955038220,-2358.57625377,0.0001,2]
[353596408,1739955038232,-818.88272,0.0001,2]
[353596409,1739955038244,-722.0000004,0.0001,2]
[353596410,1739955038279,-3261.41321144,0.0001,2]
[353596411,1739955038290,-439.81182328,0.0001,2]
[353596412,1739955038384,-499.69610402,0.0001,2]
[353596413,1739955038395,-633.29988076,0.0001,2]
[353596414,1739955038439,-3126.5648406,0.0001,2]
[353596568,1739955040318,-10740.96565784,0.0001,2]
[353596569,1739955040477,-6271.888969,0.0001,2]
[353596570,1739955040583,-3379.915,0.0001,2]
[353596571,1739955040636,-473.92536596,0.0001,2]
[353596572,1739955040691,-22390.31145016,0.0001,2]
[353596573,1739955040701,-176.46,0.0001,2]
[353596574,1739955040710,-515.12074,0.0001,2]
[353596575,1739955040719,-1277.15816,0.0001,2]
[353596576,1739955040728,-5165.33345893,0.0001,2]
[353596577,1739955040737,-315.86913385,0.0001,2]
[353596578,1739955040746,-157.0,0.0001011,2]
[353596579,1739955040755,-416.96859791,0.00010272,2]
[353596580,1739955040764,-9977.20664074,0.00010418,2]
[353596581,1739955040773,-150.43,0.000105,2]
[353596582,1739955040782,-150.62,0.000105,2]
[353596583,1739955040792,-151.74,0.000105,2]
[353596584,1739955040801,-150.36,0.000105,2]
[353596585,1739955040810,-416.96859791,0.00010538,2]
[353596586,1739955040819,-1000.0,0.00010564,2]
[353596587,1739955040829,-195.86,0.00010568,2]
[353596588,1739955040838,-500.0,0.00010586,2]
[353596589,1739955040847,-3050.89,0.00010587,2]
[353596590,1739955040856,-3763.41,0.00010592,2]
[353596591,1739955040865,-335.06,0.00010608,2]
[353596592,1739955040874,-289.6,0.00010621,2]
[353596593,1739955040884,-171.28,0.00010675,2]
[353596594,1739955040893,-158.93,0.00010733,2]
[353596595,1739955040903,-23900.0,0.00010762,2]
[353596596,1739955040911,-158.93,0.00010787,2]
[353596597,1739955040920,-193.56,0.00010789,2]
[353596598,1739955040929,-158.93,0.00010841,2]
[353596599,1739955040939,-2000.0,0.00010864,2]
[353596600,1739955040948,-300.0,0.00010864,2]
[353596601,1739955040957,-250.0,0.00010864,2]
[353596602,1739955040966,-153.61172358,0.000109,2]
[353596603,1739955040975,-166.66,0.00010903,2]
[353596604,1739955040984,-2000.0,0.0001091,2]
[353596605,1739955040993,-183.31,0.0001091,2]
[353596606,1739955041002,-378.26,0.0001093,2]
[353596607,1739955041011,-201.30889828,0.0001093,2]
[353596608,1739955041021,-2181.19,0.00010937,2]
[353596609,1739955041030,-286.72,0.0001097,2]
[353596610,1739955041039,-500.0,0.00010999,2]
[353596611,1739955041048,-500.0,0.00010999,2]
[353596612,1739955041057,-150.0,0.00010999,2]
[353596613,1739955041066,-214.7803684,0.00010999,2]
[353596614,1739955041075,-255.0,0.00010999,2]
[353596615,1739955041085,-150.0,0.00011,2]
[353596616,1739955041094,-740.59,0.00011052,2]
[353596617,1739955041103,-292.74759362,0.00011081,2]
[353596618,1739955041112,-894.8402766,0.00011099,2]
[353596619,1739955041121,-894.84027653,0.00011099,2]
[353596620,1739955041130,-894.84027653,0.00011099,2]
[353596621,1739955041139,-4968.21954893,0.00011099,2]
[353596622,1739955041148,-4968.21954889,0.00011099,2]
[353596623,1739955041158,-4968.21954889,0.00011099,2]
[353596624,1739955041167,-731.18,0.00011191,2]
[353596625,1739955041175,-171.08,0.00011229,2]
[353596626,1739955041185,-166.66,0.00011263,2]
[353596627,1739955041194,-4968.21954889,0.00011297,2]
[353596628,1739955041206,-894.84027653,0.00011297,2]
[353596629,1739955041215,-327.95,0.00011507,2]
[353596630,1739955041224,-166.66,0.00011623,2]
[353596631,1739955041233,-783.13,0.00011644,2]
[353596632,1739955041243,-567.55,0.00011644,2]
[353596633,1739955041252,-4968.21954889,0.00011763,2]
[353596634,1739955041261,-894.84027653,0.00011763,2]
[353596635,1739955041270,-1000.0,0.00011884,2]
[353596636,1739955041281,-166.66,0.00011983,2]
[353596637,1739955041291,-168.25,0.0001206,2]
[353596638,1739955041300,-4968.21954889,0.00012228,2]
[353596639,1739955041309,-894.84027653,0.00012228,2]
[353596640,1739955041318,-166.66,0.00012343,2]
[353596641,1739955041327,-250.0,0.00012437,2]
[353596642,1739955041336,-150.0,0.000126,2]
[353596643,1739955041345,-299.0820543,0.000126,2]
[353596644,1739955041354,-4968.21954889,0.00012694,2]
[353596645,1739955041363,-894.84027653,0.00012694,2]
[353596646,1739955041373,-166.66,0.00012703,2]
[353596647,1739955041382,-1060.0,0.00012805,2]
[353596648,1739955041392,-550.0,0.00013,2]
[353596649,1739955041401,-171.08,0.00013101,2]
[353596650,1739955041410,-4968.21954889,0.0001316,2]
[353596651,1739955041419,-894.84027653,0.0001316,2]
[353596652,1739955041428,-1000.0,0.00013205,2]
[353596653,1739955041437,-740.59,0.00013316,2]
[353596654,1739955041447,-1060.0,0.00013479,2]
[353596655,1739955041456,-193.56,0.00013486,2]
[353596656,1739955041465,-63547.31086463,0.0001358,2]
[353596675,1739955046227,-496.95,0.0001,2]
[353596676,1739955046238,-9114.5346,0.0001358,2]
[353596719,1739956231446,-474.0,0.00010315,2]
[353596720,1739956231500,-18.63,0.00010315,2]
[353596721,1739956231510,-497.42,0.00010315,2]
[353596722,1739956231519,-63.31353194,0.00010316,2]
[353596723,1739956231711,-436.49646806,0.00010316,2]
[353596724,1739956231721,-497.64,0.00010316,2]
[353596725,1739956231730,-258.40282111,0.00010316,2]
[353596726,1739956231742,-371.09717889,0.00010316,2]
[353596727,1739956231753,-505.54,0.00010316,2]
[353596728,1739956231762,-507.5,0.00010316,2]
[353596729,1739956231772,-493.13,0.00010316,2]
[353596730,1739956231781,-502.59,0.00010316,2]
[353596731,1739956231791,-492.35,0.00010316,2]
[353596732,1739956231801,-508.48,0.00010316,2]
[353596733,1739956231811,-499.09,0.00010316,2]
[353596734,1739956231820,-495.01,0.00010316,2]
[353596735,1739956231830,-311.91,0.00011895,2]
[353596736,1739956231839,-250.0,0.00011897,2]
[353596737,1739956231849,-500.0,0.00011937,2]
[353596738,1739956231858,-563.30282111,0.00011954,2]
[353596739,1739956231869,-436.69717889,0.00011954,2]
[353596740,1739956231880,-171.28,0.00011963,2]
[353596741,1739956231889,-1525.44,0.00011977,2]
[353596742,1739956231899,-171.08,0.00012112,2]
[353596743,1739956231909,-1158.85,0.00012272,2]
[353596744,1739956231918,-501.09,0.00012272,2]
[353596745,1739956231927,-506.53,0.00012272,2]
[353596746,1739956231937,-499.12,0.00012272,2]
[353596747,1739956231946,-508.31,0.00012272,2]
[353596748,1739956231957,-507.51,0.00012272,2]
[353596749,1739956231967,-493.43,0.00012272,2]
[353596750,1739956231977,-23900.0,0.00012456,2]
[353596751,1739956231988,-501.25,0.00012456,2]
[353596752,1739956231997,-505.23,0.00012456,2]
[353596753,1739956232007,-493.17,0.00012456,2]
[353596754,1739956232016,-495.08,0.00012456,2]
[353596755,1739956232025,-502.69,0.00012456,2]
[353596756,1739956232035,-496.46,0.00012456,2]
[353596757,1739956232045,-504.75,0.00012456,2]
[353596758,1739956232054,-490.19,0.00012456,2]
[353596759,1739956232063,-497.3,0.00012456,2]
[353596760,1739956232073,-508.73,0.00012456,2]
[353596761,1739956232082,-629.5,0.0001258,2]
[353596762,1739956232091,-496.92,0.00012842,2]
[353596763,1739956232100,-508.98,0.00012842,2]
[353596764,1739956232109,-508.88,0.00012842,2]
[353596765,1739956232119,-506.06,0.00012842,2]
[353596766,1739956232129,-490.24,0.00012842,2]
[353596767,1739956232139,-506.56,0.00012842,2]
[353596768,1739956232148,-507.57,0.00012842,2]
[353596769,1739956232158,-507.15,0.00012842,2]
[353596770,1739956232167,-504.89,0.00012842,2]
[353596771,1739956232176,-498.82,0.00012843,2]
[353596772,1739956232185,-507.32,0.00012843,2]
[353596773,1739956232195,-492.84,0.00012843,2]
[353596774,1739956232204,-499.26,0.00012844,2]
[353596775,1739956232214,-502.02,0.00012845,2]
[353596776,1739956232223,-506.68,0.00012847,2]
[353596777,1739956232233,-492.99,0.0001285,2]
[353596778,1739956232243,-214.7803684,0.00013308,2]
[353596779,1739956232252,-439.11,0.000134,2]
[353596780,1739956232262,-1000.0,0.00013448,2]
[353596781,1739956232271,-993.64390985,0.0001348,2]
[353596782,1739956232280,-6728.0142,0.0001348,2]
[353596783,1739956232289,-178.96805536,0.0001348,2]
[353596784,1739956232299,-613.16465818,0.00013485,2]
[353596785,1739956232307,-993.64390977,0.00013548,2]
[353596786,1739956232317,-178.9680553,0.00013548,2]
[353596787,1739956232326,-398.49253957,0.00013578,2]
[353596788,1739956232335,-495.66,0.00013579,2]
[353596789,1739956232345,-175693.9820946,0.0001358,2]
[353596790,1739956232358,-40229.82362197,0.0001358,2]
[353596791,1739956232368,-76038.17253466,0.0001358,2]
[353596792,1739956232378,-1064.29846,0.0001358,2]
[353596793,1739956232387,-505.69451272,0.0001358,2]
[353596794,1739956232396,-490.89,0.0001358,2]
[353596795,1739956232406,-457.61734008,0.00013598,2]
[353596796,1739956232415,-10470.85636955,0.000136,2]
[353596797,1739956235197,-391.64415528,0.000136,2]
[353596798,1739956235208,-500.0,0.000136,2]
[353596799,1739956235219,-2665.29644519,0.000136,2]
[353596831,1739956237623,-82796.22490188,0.000136,2]
[353596832,1739956237634,-226.72502447,0.000136,2]
[353596833,1739956237643,-151.0,0.000136,2]
[353596834,1739956237653,-151.0,0.000136,2]
[353596835,1739956237663,-151.0,0.000136,2]
[353596836,1739956237674,-151.0,0.000136,2]
[353596837,1739956237683,-993.64390977,0.00013616,2]
[353596838,1739956237693,-178.9680553,0.00013616,2]
[353596839,1739956237703,-3735.07128786,0.00013651,2]
[353596841,1739956237713,-993.64390977,0.00013684,2]
[353596843,1739956237722,-178.9680553,0.00013684,2]
[353596845,1739956237731,-500.0,0.00013696,2]
[353596846,1739956237740,-500.0,0.00013696,2]
[353596848,1739956237750,-454.98796311,0.00013696,2]
[353596849,1739956237759,-500.0,0.00013696,2]
[353596850,1739956237768,-500.0,0.00013696,2]
[353596851,1739956237777,-500.0,0.00013696,2]
[353596852,1739956237786,-991.0,0.00013698,2]
[353596853,1739956237796,-151.0,0.00013698,2]
[353596854,1739956237806,-151.0,0.00013698,2]
[353596855,1739956237816,-186.644659,0.00013698,2]
[353596857,1739956237825,-151.0,0.00013698,2]
[353596859,1739956237834,-151.0,0.00013698,2]
[353596861,1739956237844,-151.0,0.00013698,2]
[353596863,1739956237853,-151.0,0.00013698,2]
[353596865,1739956237862,-151.0,0.00013698,2]
[353596867,1739956237871,-151.0,0.00013698,2]
[353596869,1739956237881,-151.0,0.00013698,2]
[353596871,1739956237890,-500.0,0.00013698,2]
[353596873,1739956237899,-500.0,0.00013698,2]
[353596875,1739956237908,-151.0,0.00013698,2]
[353596877,1739956237917,-500.0,0.00013698,2]
[353596879,1739956237927,-500.0,0.00013698,2]
[353596881,1739956237937,-500.0,0.00013698,2]
[353596884,1739956237947,-500.0,0.00013698,2]
[353596885,1739956237957,-500.0,0.00013698,2]
[353596887,1739956237973,-500.0,0.00013698,2]
[353596889,1739956237983,-500.0,0.00013698,2]
[353596891,1739956237992,-156.21188,0.00013698,2]
[353596893,1739956238002,-884.18,0.00013698,2]
[353596896,1739956238012,-500.0,0.00013698,2]
[353596898,1739956238022,-151.0,0.00013698,2]
[353596900,1739956238031,-500.0,0.00013698,2]
[353596902,1739956238041,-151.0,0.00013698,2]
[353596904,1739956238050,-151.0,0.00013698,2]
[353596906,1739956238059,-151.0,0.00013698,2]
[353596908,1739956238068,-151.0,0.00013698,2]
[353596910,1739956238077,-151.0,0.00013698,2]
[353596912,1739956238086,-500.97687233,0.00013698,2]
[353596914,1739956238095,-155.745187,0.00013698,2]
[353596916,1739956238104,-500.0,0.00013698,2]
[353596918,1739956238114,-506.85651084,0.00013698,2]
[353596920,1739956238122,-501.14293736,0.00013698,2]
[353596922,1739956238131,-500.0,0.00013698,2]
[353596924,1739956238141,-500.0,0.00013698,2]
[353596926,1739956238150,-1946.584212,0.00013698,2]
[353596928,1739956238159,-500.0,0.00013698,2]
[353596930,1739956238167,-500.0,0.00013698,2]
[353596932,1739956238177,-500.0,0.00013698,2]
[353596934,1739956238185,-834.85,0.00013698,2]
[353596936,1739956238197,-505.64736792,0.00013698,2]
[353596938,1739956238207,-509.13592463,0.00013698,2]
[353596940,1739956238217,-500.0,0.00013698,2]
[353596942,1739956238226,-1470.743788,0.00013698,2]
[353596944,1739956238235,-500.0,0.00013698,2]
[353596946,1739956238244,-500.0,0.00013698,2]
[353596948,1739956238254,-500.0,0.00013698,2]
[353596950,1739956238263,-151.0,0.00013698,2]
[353596952,1739956238272,-151.0,0.00013698,2]
[353596954,1739956238280,-711.77,0.00013698,2]
[353596956,1739956238290,-151.0,0.00013698,2]
[353596958,1739956238299,-151.0,0.00013698,2]
[353596960,1739956238308,-151.0,0.00013698,2]
[353596962,1739956238317,-691.82,0.00013698,2]
[353596964,1739956238326,-151.0,0.00013698,2]
[353596966,1739956238335,-151.0,0.00013698,2]
[353596968,1739956238344,-151.0,0.00013698,2]
[353596970,1739956238353,-500.0,0.00013698,2]
[353596972,1739956238362,-151.0,0.00013698,2]
[353596973,1739956238371,-151.0,0.00013698,2]
[353596975,1739956238380,-151.0,0.00013698,2]
[353596977,1739956238389,-151.0,0.00013698,2]
[353596979,1739956238397,-161.861003,0.00013698,2]
[353596981,1739956238406,-151.0,0.00013698,2]
[353596983,1739956238416,-151.0,0.00013698,2]
[353596985,1739956238425,-151.0,0.00013698,2]
[353596987,1739956238434,-151.0,0.00013698,2]
[353596989,1739956238443,-151.0,0.00013698,2]
[353596991,1739956238452,-151.0,0.00013698,2]
[353596993,1739956238461,-151.0,0.00013698,2]
[353596995,1739956238470,-151.0,0.00013698,2]
[353596997,1739956238479,-220.5985,0.00013698,2]
[353596999,1739956238488,-151.0,0.00013698,2]
[353597001,1739956238497,-151.0,0.00013698,2]
[353597003,1739956238506,-151.0,0.00013698,2]
[353597005,1739956238514,-151.0,0.00013698,2]
[353597007,1739956238523,-151.0,0.00013698,2]
[353597009,1739956238533,-151.0,0.00013698,2]
[353597011,1739956238542,-151.0,0.00013698,2]
[353597013,1739956238551,-500.0,0.00013698,2]
[353597015,1739956238561,-151.0,0.00013698,2]
[353597017,1739956238570,-151.0,0.00013698,2]
[353597019,1739956238580,-151.0,0.00013698,2]
[353597021,1739956238594,-151.0,0.00013698,2]
[353597024,1739956238603,-151.0,0.00013698,2]
[353597025,1739956238613,-151.0,0.00013698,2]
[353597027,1739956238622,-151.0,0.00013698,2]
[353597029,1739956238631,-151.0,0.00013698,2]
[353597031,1739956238641,-154.942717,0.00013698,2]
[353597033,1739956238650,-500.0,0.00013698,2]
[353597035,1739956238660,-500.0,0.00013698,2]
[353597038,1739956238670,-775.45,0.00013698,2]
[353597040,1739956238680,-500.0,0.00013698,2]
[353597041,1739956238690,-608.99630468,0.00013698,2]
[353597043,1739956238699,-500.0,0.00013698,2]
[353597045,1739956238708,-500.0,0.00013698,2]
[353597047,1739956238718,-500.0,0.00013698,2]
[353597049,1739956238728,-500.0,0.00013698,2]
[353597051,1739956238737,-500.0,0.00013698,2]
[353597053,1739956238747,-536.53,0.00013698,2]
[353597055,1739956238756,-500.0,0.00013698,2]
[353597057,1739956238766,-636.56,0.00013698,2]
[353597059,1739956238775,-500.0,0.00013698,2]
[353597061,1739956238784,-500.0,0.00013698,2]
[353597063,1739956238793,-500.0,0.00013698,2]
[353597065,1739956238803,-500.0,0.00013698,2]
[353597067,1739956238813,-672.21,0.00013698,2]
[353597069,1739956238822,-500.0,0.00013698,2]
[353597071,1739956238831,-500.0,0.00013698,2]
[353597073,1739956238841,-500.0,0.00013698,2]
[353597075,1739956238850,-500.0,0.00013698,2]
[353597077,1739956238860,-891.66,0.00013698,2]
[353597079,1739956238869,-690.27,0.00013698,2]
[353597081,1739956238878,-500.0,0.00013698,2]
[353597083,1739956238887,-509.22602888,0.00013698,2]
[353597085,1739956238897,-500.0,0.00013698,2]
[353597087,1739956238907,-500.0,0.00013698,2]
[353597089,1739956238916,-500.0,0.00013698,2]
[353597090,1739956238926,-500.0,0.00013698,2]
[353597091,1739956238936,-500.0,0.00013698,2]
[353597092,1739956238946,-500.0,0.00013698,2]
[353597093,1739956238955,-151.0,0.00013698,2]
[353597094,1739956238964,-151.0,0.00013698,2]
[353597095,1739956238973,-500.0,0.00013698,2]
[353597096,1739956238982,-500.0,0.00013698,2]
[353597097,1739956238992,-500.0,0.00013698,2]
[353597098,1739956239002,-500.0,0.00013698,2]
[353597099,1739956239011,-500.0,0.00013698,2]
[353597100,1739956239021,-500.0,0.00013698,2]
[353597101,1739956239030,-571.03,0.00013698,2]
[353597102,1739956239040,-500.0,0.00013698,2]
[353597103,1739956239049,-500.0,0.00013698,2]
[353597104,1739956239061,-505.47358965,0.00013698,2]
[353597105,1739956239071,-502.50122581,0.00013698,2]
[353597106,1739956239081,-500.0,0.00013698,2]
[353597107,1739956239089,-590.72105326,0.00013698,2]
[353597108,1739956239101,-500.0,0.00013698,2]
[353597109,1739956239109,-588.11922218,0.00013698,2]
[353597110,1739956239118,-500.0,0.00013698,2]
[353597111,1739956239128,-564.48,0.00013698,2]
[353597112,1739956239137,-731.53,0.00013698,2]
[353597113,1739956239147,-500.0,0.00013698,2]
[353597114,1739956239157,-500.0,0.00013698,2]
[353597115,1739956239167,-500.0,0.00013698,2]
[353597116,1739956239177,-500.0,0.00013698,2]
[353597117,1739956239187,-1613.57,0.00013698,2]
[353597118,1739956239198,-612.22,0.00013698,2]
[353597119,1739956239208,-500.0,0.00013698,2]
[353597120,1739956239218,-299.8381068,0.00013698,2]
[353597121,1739956239227,-500.0,0.00013698,2]
[353597122,1739956239237,-205.27640107,0.00013698,2]
[353597123,1739956239246,-500.0,0.00013698,2]
[353597124,1739956239256,-1000.0,0.00013698,2]
[353597125,1739956239266,-500.0,0.00013698,2]
[353597126,1739956239275,-528.05,0.00013698,2]
[353597127,1739956239284,-500.0,0.00013698,2]
[353597128,1739956239294,-500.0,0.00013698,2]
[353597129,1739956239303,-500.0,0.00013698,2]
[353597130,1739956239313,-500.0,0.00013698,2]
[353597131,1739956239323,-513.0351938,0.00013698,2]
[353597132,1739956239332,-500.0,0.00013698,2]
[353597133,1739956239342,-500.0,0.00013698,2]
[353597134,1739956239351,-500.0,0.00013698,2]
[353597135,1739956239361,-520.77,0.00013698,2]
[353597136,1739956239371,-500.0,0.00013698,2]
[353597137,1739956239380,-500.0,0.00013698,2]
[353597138,1739956239390,-500.0,0.00013698,2]
[353597139,1739956239400,-500.0,0.00013698,2]
[353597140,1739956239410,-593.34,0.00013698,2]
[353597141,1739956239420,-500.0,0.00013698,2]
[353597142,1739956239430,-500.0,0.00013698,2]
[353597144,1739956239440,-500.0,0.00013698,2]
[353597145,1739956239450,-500.0,0.00013698,2]
[353597146,1739956239459,-601.11536071,0.00013698,2]
[353597148,1739956239469,-500.0,0.00013698,2]
[353597149,1739956239478,-500.0,0.00013698,2]
[353597150,1739956239488,-899.15,0.00013698,2]
[353597151,1739956239498,-500.0,0.00013698,2]
[353597152,1739956239508,-500.0,0.00013698,2]
[353597153,1739956239519,-500.0,0.00013698,2]
[353597154,1739956239529,-507.01410544,0.00013698,2]
[353597155,1739956239539,-506.02,0.00013698,2]
[353597156,1739956239549,-500.0,0.00013698,2]